fUSD/lending_fUSD_20241109
["ID","MTS","AMOUNT","RATE_DAILY","PERIOD"]
[341711898,1731115843834,-1091.06,0.00030119,2]
[341711900,1731115843843,-1091.06,0.00030119,2]
[341711902,1731115843853,-1091.06,0.00030119,2]
[341711904,1731115843862,-1091.06,0.00030119,2]
[341711906,1731115843874,-1091.06,0.00030119,2]
[341711908,1731115843884,-1091.06,0.00030119,2]
[341711910,1731115843893,-1091.06,0.00030119,2]
[341711912,1731115843902,-1091.06,0.00030119,2]
[341711914,1731115843911,-1091.06,0.00030119,2]
[341711916,1731115843922,-1091.06,0.00030119,2]
[341711918,1731115843931,-1091.06,0.00030119,2]
[341711920,1731115843941,-1091.06,0.00030119,2]
[341711924,1731115843951,-1091.06,0.00030119,2]
[341711926,1731115843960,-1091.06,0.00030119,2]
[341711928,1731115843969,-1091.06,0.00030119,2]
[341711929,1731115843978,-1091.06,0.00030119,2]
[341711930,1731115843988,-1091.06,0.00030119,2]
[341711931,1731115843998,-1091.27295549,0.00030119,2]
[341711932,1731115844007,-1001.86,0.00030119,2]
[341711933,1731115844017,-1001.86,0.00030119,2]
[341711935,1731115844026,-1001.86,0.00030119,2]
[341711937,1731115844037,-1001.86,0.00030119,2]
[341711939,1731115844047,-1001.86,0.00030119,2]
[341711941,1731115844056,-1001.86,0.00030119,2]
[341711943,1731115844066,-1001.86,0.00030119,2]
[341711945,1731115844075,-1001.86,0.00030119,2]
[341711947,1731115844084,-1001.86,0.00030119,2]
[341711949,1731115844093,-1001.86,0.00030119,2]
[341711951,1731115844102,-1001.86,0.00030119,2]
[341711953,1731115844111,-1001.86,0.00030119,2]
[341711955,1731115844129,-1001.86,0.00030119,2]
[341711957,1731115844138,-1001.86,0.00030119,2]
[341711959,1731115844148,-1001.86,0.00030119,2]
[341711961,1731115844157,-1001.86,0.00030119,2]
[341711963,1731115844167,-1001.86,0.00030119,2]
[341711965,1731115844176,-1001.86,0.00030119,2]
[341711967,1731115844186,-1001.86,0.00030119,2]
[341711969,1731115844196,-1001.86,0.00030119,2]
[341711971,1731115844206,-1001.86,0.00030119,2]
[341711973,1731115844216,-1001.86,0.00030119,2]
[341711975,1731115844225,-1001.86,0.00030119,2]
[341711977,1731115844235,-1002.01328423,0.00030119,2]
[341711979,1731115844244,-2488.82006986,0.0003012,2]
[341711981,1731115844253,-196.59626674,0.0003012,2]
[341711983,1731115844263,-24276.34614673,0.0003012,2]
[341711985,1731115844275,-277.86980636,0.0003012,2]
[341712019,1731115846351,-646.04653501,0.00030036,2]
[341712020,1731115846509,-2829.73960146,0.00030036,2]
[341712021,1731115918828,450.0,0.00021,2]
[341712022,1731115919841,155.72475,0.00024047,2]
[341712027,1731116014288,182.41,0.00015342,2]
[341712028,1731116103483,95863.11597039,0.0001726,2]
[341712029,1731116161980,300.0,0.00019725,2]
[341712032,1731116319463,150.0,0.000201,2]
[341712033,1731116358141,10002.43395333,0.00027,60]
[341712040,1731116576071,150.57088377,0.00027,60]
[341712043,1731116821091,202.52,0.00027,60]
[341712044,1731116839125,-248.03125,0.00022522,2]
[341712045,1731116839154,-468.02281683,0.00026,2]
[341712046,1731116839175,-912.274172,0.00026968,2]
[341712047,1731116839203,-634.14,0.00027076,2]
[341712048,1731116839227,-152.0,0.0002807,3]
[341712049,1731116839250,-369.51439882,0.00028316,5]
[341712050,1731116844101,-683.48560118,0.00028316,5]
[341712051,1731116844123,-154.45,0.00028496,2]
[341712052,1731116844145,-1000.0,0.00028841,2]
[341712053,1731116844166,-187.17,0.00028849,2]
[341712054,1731116844188,-152.0,0.00028878,4]
[341712055,1731116844217,-567.73,0.00028921,120]
[341712056,1731116844239,-157.485,0.0002899,2]
[341712057,1731116844260,-1842.0234381,0.00029,30]
[341712058,1731116844283,-335.29,0.00029016,2]
[341712059,1731116844304,-101.37208756,0.00029137,2]
[341712095,1731117038519,-250.0,0.00028963,2]
[341712096,1731117038529,-166.17775869,0.0002916,2]
[341712097,1731117038538,-208.85,0.0002918,30]
[341712098,1731117038547,-166.17775869,0.0002924,2]
[341712099,1731117038556,-634.14,0.0002934,2]
[341712100,1731117038566,-65.80456457,0.00029521,2]
[341712101,1731117038577,-188.19543543,0.00029521,2]
[341712102,1731117038590,-154.45,0.00029565,2]
[341712103,1731117038599,-150.51,0.00029582,2]
[341712104,1731117038608,-150.0,0.00029582,2]
[341712105,1731117038617,-150.0,0.00029582,2]
[341712106,1731117038626,-747.20310481,0.00029589,2]
[341712107,1731117038638,-381.965,0.00029589,2]
[341712200,1731117040524,-123.83189519,0.00029589,2]
[341712201,1731117040533,-452.0,0.00029589,2]
[341712202,1731117040543,-559.0,0.00029589,2]
[341712203,1731117040551,-1265.838,0.00029589,2]
[341712204,1731117040560,-816.0,0.00029589,2]
[341712205,1731117040569,-921.0,0.00029589,2]
[341712206,1731117040578,-3464.0,0.00029589,2]
[341712207,1731117040588,-400.202,0.00029589,2]
[341712208,1731117040597,-150.0,0.00029589,2]
[341712209,1731117040607,-1089.956,0.00029589,2]
[341712210,1731117040616,-263.1846233,0.00029589,2]
[341712211,1731117040627,-8873.53928925,0.00029589,2]
[341712212,1731117040639,-4486.27608745,0.00029589,2]
[341712213,1731117040648,-879.1943497,0.00029648,2]
[341712214,1731117040657,-152.0,0.00029685,5]
[341712215,1731117040666,-2000.0,0.0002982,2]
[341712216,1731117040676,-2000.0,0.00029879,15]
[341712217,1731117040686,-2722.6285616,0.0002988,2]
[341712229,1731117043419,-4454.65832674,0.0002988,2]
[341712230,1731117044445,-98526.5807224,0.0002988,2]
[341712242,1731117045414,538.0,0.000218,2]
[341712243,1731117046117,511.0,0.000218,2]
[341712245,1731117046472,-1492.00022394,0.0002988,2]
[341712267,1731117047165,168.7925,0.00022549,2]
[341712344,1731117064936,155.38,0.00015342,2]
[341712345,1731117073987,150.0,0.000205,13]
[341712346,1731117076061,150.0,0.000205,13]
[341712347,1731117077417,150.0,0.000205,13]
[341712348,1731117078841,150.0,0.000205,13]
[341712349,1731117080338,150.0,0.000205,13]
[341712368,1731117780129,155.34,0.00015342,2]
[341712371,1731118047125,-6967.0,0.00025,2]
[341712372,1731118047148,-166.17775869,0.00027002,2]
[341712373,1731118047171,-636.16,0.00027102,2]
[341712374,1731118047192,-2307.23327797,0.000278,5]
[341712375,1731118048118,-4778.39826377,0.000278,5]
[341712385,1731118232757,-3211.6503843,0.000278,5]
[341712386,1731118232827,-7232.26068372,0.000278,5]
[341712387,1731118232838,-11693.98879897,0.000278,5]
[341712388,1731118232851,-266.46859127,0.000278,5]
[341712389,1731118232860,-315.87,0.0002806,2]
[341712390,1731118232869,-3050.75612692,0.00028244,2]
[341712391,1731118232879,-1002.18030121,0.00028244,2]
[341712392,1731118232890,-498.48404174,0.00028244,2]
[341712393,1731118232901,-990.09349782,0.00028244,2]
[341712394,1731118232912,-1313.55142435,0.00028244,2]
[341712395,1731118232922,-1498.86613168,0.00028244,2]
[341712396,1731118237243,604.35,0.00026788,2]
[341712400,1731118238542,-943.632581,0.00028244,2]
[341712401,1731118238554,-1892.27757239,0.00028244,2]
[341712402,1731118238566,-1553.72981825,0.00028244,2]
[341712403,1731118238714,-865.1330739,0.00028244,2]
[341712404,1731118238726,-6334.69087742,0.00028244,2]
[341712405,1731118238904,-1513.64060896,0.00028244,2]
[341712566,1731118240632,-296.765,0.00028244,2]
[341712591,1731118240861,-587.55148564,0.00028244,2]
[341712616,1731118241093,-3385.64745872,0.00028244,2]
[341712619,1731118241103,-11.79338304,0.00028511,2]
[341712914,1731118243718,-304.07661696,0.00028511,2]
[341712916,1731118243728,-167.01,0.0002861,2]
[341712918,1731118243737,-152.19317824,0.00028669,2]
[341712920,1731118243748,-715.63682176,0.00028669,2]
[341712922,1731118243758,-200.0,0.00028671,2]
[341712924,1731118243768,-156.72,0.00028726,7]
[341712926,1731118243783,-1000.0,0.00028728,2]
[341712928,1731118243792,-250.0,0.00028741,2]
[341712930,1731118243801,-208.32,0.0002876,2]
[341712932,1731118243810,-205.7,0.0002876,2]
[341712934,1731118243821,-345.81,0.00028765,120]
[341712936,1731118243831,-250.0,0.00028784,2]
[341712938,1731118243841,-198.4,0.00028816,30]
[341712940,1731118243852,-155.34,0.00028858,2]
[341712942,1731118243861,-256.32,0.00028942,2]
[341712944,1731118243871,-315.87,0.00028962,2]
[341712946,1731118243880,-713.8247529,0.00029,2]
[341712963,1731118244033,-282.63,0.00029,2]
[341712970,1731118246833,-1007.6452471,0.00029,2]
[341712971,1731118246842,-111.97375711,0.00029,2]
[341712972,1731118246857,-918.54557906,0.00029,2]
[341712973,1731118246867,-604.35,0.00029052,2]
[341712974,1731118246876,-409.000208,0.00029194,2]
[341712975,1731118246886,-150.0,0.00029297,2]
[341712976,1731118246895,-1291.06656289,0.00029297,2]
[341712977,1731118246906,-3944.39609316,0.00029297,2]
[341712978,1731118246918,-4745.04032477,0.00029297,2]
[341712979,1731118246929,-3642.49701918,0.00029297,2]
[341712980,1731118246938,-409.000208,0.00029355,2]
[341712981,1731118246947,-315.87,0.00029413,2]
[341712982,1731118246956,-1068.91713019,0.000295,50]
[341712983,1731118246965,-2000.0,0.0002958,2]
[341712984,1731118246974,-1253.0,0.00029589,2]
[341712985,1731118246983,-559.0,0.00029589,2]
[341712986,1731118246993,-814.0,0.00029589,2]
[341712987,1731118247002,-734.75,0.00029589,2]
[341712988,1731118247011,-292.10519768,0.00029589,2]
[341712989,1731118247023,-1347.18080232,0.00029589,2]
[341712990,1731118247032,-1870.07268214,0.0002959,2]
[341712991,1731118247042,-491.1227,0.000296,2]
[341712992,1731118247052,-758.3,0.00029787,15]
[341712993,1731118247061,-409.0002081,0.0002983,2]
[341712995,1731118247070,-150.0,0.00029863,2]
[341712996,1731118247080,-150.0,0.00029863,2]
[341712997,1731118247090,-315.87,0.00029863,2]
[341712998,1731118247099,-150.0,0.00029865,2]
[341713000,1731118247108,-150.0,0.0002987,2]
[341713002,1731118247117,-150.0,0.00029872,2]
[341713003,1731118247126,-2000.0,0.00029879,15]
[341713004,1731118247135,-5680.97070014,0.0002988,2]
[341713005,1731118247146,-25764.02616532,0.0002988,2]
[341713006,1731118247157,-4349.4243,0.0002988,2]
[341713007,1731118247171,-4223.50921084,0.0002988,2]
[341713009,1731118441195,300.0,0.00019725,2]
[341713011,1731118574572,160.87,0.00015342,2]
[341713013,1731118622165,300.0,0.00019725,2]
[341713021,1731119108310,4739.13,0.00016,2]
[341713022,1731119108375,98630.86591867,0.00016,2]
[341713025,1731119235176,-1009.0,0.000218,2]
[341713026,1731119235198,-153.898,0.00023002,2]
[341713027,1731119235220,-543.91,0.00026988,2]
[341713028,1731119235244,-174.4,0.00028296,2]
[341713029,1731119235266,-174.4,0.0002875,2]
[341713030,1731119235288,-166.65,0.00028851,2]
[341713031,1731119235311,-800.0,0.00028871,120]
[341713032,1731119235332,-1000.0,0.00028871,2]
[341713033,1731119235356,-250.0,0.00028955,2]
[341713034,1731119235381,-198.45,0.00029167,30]
[341713035,1731119235404,-174.4,0.00029205,2]
[341713036,1731119235426,-543.91,0.00029252,2]
[341713037,1731119235447,-261.6,0.000294,120]
[341713038,1731119235467,-994.39,0.0002956,2]
[341713039,1731119235488,-966.04,0.0002956,2]
[341713040,1731119235508,-193.929,0.00029575,2]
[341713041,1731119235528,-341.898,0.00029575,2]
[341713042,1731119235548,-150.0,0.00029575,2]
[341713043,1731119235568,-1219.76348277,0.00029575,2]
[341713044,1731119241141,-317.33888848,0.00029575,2]
[341713065,1731119312320,155.0,0.000201,2]
[341713074,1731119344922,180.87,0.00015342,2]
[341713075,1731119345115,-2585.247,0.0002296,2]
[341713076,1731119361626,165.0,0.000201,2]
[341713080,1731119402724,285.16074491,0.000201,2]
[341713082,1731119403606,155.724,0.00022755,2]
[341713099,1731119431843,-500.0,0.00028319,7]
[341713100,1731119431852,-600.0,0.00028319,7]
[341713101,1731119431862,-3439.593,0.00028839,2]
[341713102,1731119431871,-1251.30993509,0.00028923,2]
[341713103,1731119431882,-448.54006491,0.00028923,2]
[341713104,1731119431892,-157.425,0.0002899,2]
[341713105,1731119431901,-188.52,0.00029141,30]
[341713106,1731119431911,-600.0,0.00029141,7]
[341713107,1731119431920,-503.32242936,0.00029415,7]
[341713108,1731119431929,-500.0,0.00029415,7]
[341713109,1731119431938,-469.19338895,0.000295,7]
[341713110,1731119431947,-2000.0,0.0002958,2]
[341713111,1731119431956,-174.4,0.0002966,2]
[341713112,1731119431965,-523.36318784,0.000298,2]
[341713113,1731119431975,-150.0,0.00029847,2]
[341713114,1731119431984,-150.0,0.00029848,2]
[341713115,1731119431993,-523.36318783,0.0002985,2]
[341713116,1731119432002,-150.0,0.00029851,2]
[341713117,1731119432011,-150.0,0.00029852,2]
[341713118,1731119432020,-300.0,0.00029855,2]
[341713119,1731119432029,-150.0,0.00029857,2]
[341713120,1731119432040,-150.0,0.00029861,2]
[341713121,1731119432049,-150.0,0.00029862,2]
[341713122,1731119432058,-150.0,0.00029863,2]
[341713123,1731119432067,-150.0,0.00029868,2]
[341713124,1731119432076,-300.0,0.00029871,2]
[341713125,1731119432086,-150.0,0.00029871,2]
[341713126,1731119432095,-150.0,0.00029872,2]
[341713127,1731119432108,-150.0,0.00029877,2]
[341713128,1731119432117,-2000.0,0.00029879,15]
[341713129,1731119432126,-51302.67130724,0.0002988,2]
[341713130,1731119432138,-731.15094616,0.0002988,2]
[341713131,1731119432150,-2903.71306986,0.0002988,2]
[341713132,1731119432161,-3807.81671501,0.0002988,2]
[341713133,1731119432172,-2228.53585342,0.0002988,2]
[341713134,1731119432183,-676.1,0.0002988,2]
[341713135,1731119432195,-912.59873716,0.0002988,2]
[341713136,1731119432313,-1017.2002,0.0002988,2]
[341713137,1731119432324,-103950.00000011,0.0002988,2]
[341713138,1731119432335,-322.26418358,0.0002988,2]
[341713139,1731119432346,-1594.44501813,0.0002988,2]
[341713140,1731119432357,-2286.3,0.0002988,2]
[341713141,1731119432369,-474.46635641,0.0002988,2]
[341713155,1731119437789,-895.83952949,0.0002988,2]
[341713156,1731119437800,-52990.65613193,0.0002988,2]
[341713157,1731119437811,-200.0,0.0002988,2]
[341713158,1731119437821,-150.0,0.00029881,2]
[341713159,1731119437830,-150.0,0.00029885,2]
[341713160,1731119437840,-150.0,0.00029887,2]
[341713161,1731119437850,-246.29,0.0002989,10]
[341713162,1731119437861,-150.0,0.00029891,2]
[341713163,1731119437872,-205.12733945,0.00029893,2]
[341713164,1731119437881,-4404.6443,0.00029899,2]
[341713165,1731119437890,-1716.5263,0.00029899,2]
[341713166,1731119437899,-452.6806,0.00029899,2]
[341713167,1731119437908,-502.2887,0.000299,2]
[341713168,1731119437917,-806.5075,0.000299,2]
[341713169,1731119437926,-304.4539,0.000299,2]
[341713170,1731119437935,-556.9939,0.000299,2]
[341713171,1731119437944,-484.9554,0.000299,2]
[341713172,1731119437954,-92457.6118,0.000299,2]
[341713173,1731119437963,-321.73217626,0.000299,2]
[341713174,1731119437972,-523.36318783,0.000299,2]
[341713175,1731119437981,-150.0,0.00029901,2]
[341713176,1731119437991,-150.0,0.00029902,2]
[341713177,1731119438001,-150.0,0.00029909,2]
[341713178,1731119438012,-150.0,0.00029911,2]
[341713179,1731119438022,-150.0,0.00029924,2]
[341713180,1731119438032,-150.0,0.00029926,2]
[341713181,1731119438042,-150.0,0.00029927,2]
[341713182,1731119438053,-150.0,0.00029952,2]
[341713183,1731119438062,-1022.615515,0.0002996,10]
[341713184,1731119438072,-600.0,0.00029963,7]
[341713185,1731119438081,-500.0,0.00029963,7]
[341713186,1731119438092,-150.0,0.00029969,2]
[341713187,1731119438103,-500.0,0.00029973,5]
[341713188,1731119438113,-150.0,0.00029977,2]
[341713189,1731119438122,-1000.0,0.0002998,10]
[341713190,1731119438132,-150.0,0.00029982,2]
[341713191,1731119438142,-150.0,0.00029984,2]
[341713192,1731119438153,-500.0,0.00029984,2]
[341713193,1731119438162,-500.0,0.00029984,2]
[341713194,1731119438171,-500.0,0.00029984,2]
[341713195,1731119438182,-500.0,0.00029984,2]
[341713196,1731119438191,-150.53661368,0.00029984,2]
[341713197,1731119438200,-5755.42173898,0.00029985,30]
[341713198,1731119438210,-478.65969546,0.00029985,30]
[341713199,1731119438219,-150.0,0.00029989,2]
[341713200,1731119438228,-234.15,0.00029989,3]
[341713201,1731119438238,-150.0,0.00029991,2]
[341713202,1731119438247,-150.0,0.00029993,2]
[341713203,1731119438256,-300.0,0.00029995,2]
[341713204,1731119438266,-150.0,0.00029997,2]
[341713205,1731119438275,-1001.86,0.00029999,2]
[341713206,1731119438285,-1001.86,0.00029999,2]
[341713207,1731119438294,-1001.86,0.00029999,2]
[341713208,1731119438303,-1001.86,0.00029999,2]
[341713209,1731119438314,-1001.86,0.00029999,2]
[341713210,1731119438323,-1001.86,0.00029999,2]
[341713211,1731119438332,-1001.86,0.00029999,2]
[341713212,1731119438341,-1001.86,0.00029999,2]
[341713213,1731119438350,-1001.86,0.00029999,2]
[341713215,1731119438359,-1001.86,0.00029999,2]
[341713217,1731119438368,-1001.86,0.00029999,2]
[341713219,1731119438377,-1001.86,0.00029999,2]
[341713221,1731119438387,-1001.86,0.00029999,2]
[341713223,1731119438396,-1001.86,0.00029999,2]
[341713225,1731119438404,-1001.86,0.00029999,2]
[341713227,1731119438414,-1001.86,0.00029999,2]
[341713229,1731119438423,-431.47545439,0.00029999,2]
[341713232,1731119438446,-570.38454561,0.00029999,2]
[341713234,1731119438455,-1001.86,0.00029999,2]
[341713236,1731119438465,-1001.86,0.00029999,2]
[341713238,1731119438474,-1001.86,0.00029999,2]
[341713240,1731119438484,-1001.86,0.00029999,2]
[341713242,1731119438493,-1001.86,0.00029999,2]
[341713244,1731119438502,-1001.86,0.00029999,2]
[341713246,1731119438512,-847.69666222,0.00029999,2]
[341713248,1731119438523,-154.31662201,0.00029999,2]
[341713250,1731119438532,-150.0,0.00029999,2]
[341713252,1731119438542,-500.0,0.00029999,2]
[341713254,1731119438551,-500.0,0.00029999,2]
[341713256,1731119438560,-500.0,0.00029999,2]
[341713258,1731119438570,-211.15891337,0.00029999,2]
[341713264,1731119438610,-347.50904582,0.00029999,2]
[341713266,1731119438619,-500.0,0.00029999,2]
[341713268,1731119438628,-500.0,0.00029999,2]
[341713270,1731119438637,-151.0,0.00029999,7]
[341713272,1731119438646,-151.0,0.00029999,7]
[341713274,1731119438655,-151.0,0.00029999,7]
[341713276,1731119438664,-151.0,0.00029999,7]
[341713278,1731119438673,-151.0,0.00029999,7]
[341713280,1731119438683,-1865.6642,0.00029999,7]
[341713282,1731119438691,-2984.82148887,0.00029999,2]
[341713284,1731119438702,-416.82802717,0.00029999,2]
[341713286,1731119438713,-4098.35048396,0.00029999,2]
[341713288,1731119438723,-7500.0,0.00029999,2]
[341713290,1731119438732,-155.439086,0.00029999,7]
[341713292,1731119438741,-286.304032,0.00029999,7]
[341713294,1731119438750,-286.304032,0.00029999,7]
[341713296,1731119438759,-151.0,0.00029999,7]
[341713298,1731119438768,-164.941964,0.00029999,7]
[341713300,1731119438777,-151.0,0.00029999,7]
[341713302,1731119438787,-151.0,0.00029999,7]
[341713304,1731119438796,-336.771355,0.00029999,7]
[341713306,1731119438805,-151.0,0.00029999,7]
[341713308,1731119438814,-336.771355,0.00029999,7]
[341713310,1731119438823,-151.0,0.00029999,7]
[341713312,1731119438832,-1881.481148,0.00029999,2]
[341713314,1731119438841,-23844.42499226,0.0003,4]
[341713399,1731119439628,-300.183,0.0003,4]
[341713424,1731119439841,-2015.94855758,0.0003,4]
[341713427,1731119439853,-381.61,0.0003,4]
[341713450,1731119440066,-38904.15126912,0.0003,4]
[341713452,1731119440079,-1182.622441,0.0003,4]
[341713455,1731119440091,-840.77658634,0.0003,4]
[341713456,1731119440106,-25549.49317406,0.0003,4]
[341713457,1731119440118,-10525.25525478,0.0003,4]
[341713458,1731119440129,-37785.52692076,0.0003,4]
[341713459,1731119440141,-1112.42936015,0.0003,4]
[341713460,1731119440154,-265.44017558,0.0003,4]
[341713461,1731119440166,-27055.25230383,0.0003,4]
[341713462,1731119440178,-883.46339637,0.0003,4]
[341713464,1731119440189,-518.424,0.0003,4]
[341713614,1731119443296,-327.02115138,0.000299,2]
[341713615,1731119443307,-500.0,0.00029973,2]
[341713616,1731119443316,-38190.81828316,0.0003,4]
[341713617,1731119443327,-167446.93259718,0.0003,4]
[341713618,1731119443338,-2067.78924775,0.0003,4]
[341713619,1731119443351,-283.9459998,0.0003,4]
[341713620,1731119443363,-1353.91089838,0.0003,4]
[341713621,1731119443443,-579.7411024,0.0003,4]
[341713622,1731119443453,-519.6707722,0.0003,4]
[341713623,1731119443599,-3241.85467937,0.0003,4]
[341713624,1731119443610,-602.6,0.0003,4]
[341713651,1731119446029,-150.0,0.0002986,2]
[341713652,1731119446039,-327.02115133,0.00029919,2]
[341713653,1731119446049,-150.0,0.00029929,2]
[341713654,1731119446058,-150.0,0.00029933,2]
[341713655,1731119446067,-150.0,0.00029947,2]
[341713656,1731119446076,-2562.20167748,0.0003,4]
[341713659,1731119523852,450.0,0.00021,2]
[341713660,1731119584025,151.60511449,0.00018123,2]
[341713664,1731120314058,155.61,0.00015342,2]
[341713665,1731120315661,186.02325,0.00022583,2]
[341713668,1731120427120,-524.76,0.00026957,2]
[341713669,1731120427142,-210.7,0.00027485,2]
[341713670,1731120427166,-280.33,0.00028205,2]
[341713671,1731120427188,-152.0,0.0002825,3]
[341713672,1731120427208,-2850.46392203,0.00028319,2]
[341713673,1731120427231,-500.0,0.00028319,7]
[341713674,1731120427252,-500.0,0.00028319,7]
[341713675,1731120427274,-280.33,0.00028658,2]
[341713676,1731120427296,-1000.0,0.00028806,2]
[341713677,1731120427318,-172.55,0.00028813,2]
[341713678,1731120427341,-160.0,0.00028833,120]
[341713679,1731120427362,-166.65,0.00028848,2]
[341713680,1731120427386,-155.61,0.00028858,2]
[341713681,1731120427409,-1800.0,0.00029,30]
[341713682,1731120427435,-179.09,0.00029036,30]
[341713683,1731120427457,-280.33,0.00029112,2]
[341713684,1731120427480,-500.0,0.00029141,7]
[341713685,1731120427502,-524.76,0.0002922,2]
[341713686,1731120427524,-152.0,0.00029236,4]
[341713687,1731120427546,-500.0,0.00029415,7]
[341713688,1731120427567,-440.33,0.0002955,2]
[341713689,1731120427589,-160.329,0.00029563,2]
[341713690,1731120427611,-3325.471,0.00029563,2]
[341713691,1731120427636,-1647.267,0.00029563,2]
[341713692,1731120427659,-280.33,0.00029565,2]
[341713693,1731120427680,-170.58,0.00029815,2]
[341713694,1731120427702,-2792.94670599,0.00029818,120]
[341713695,1731120427727,-3245.07391044,0.00029818,120]
[341713696,1731120427750,-6.69723152,0.00029819,2]
[341713697,1731120434199,-365.30276848,0.00029819,2]
[341713698,1731120434223,-150.0,0.00029845,2]
[341713699,1731120434246,-204.35429077,0.00029849,2]
[341713700,1731120434267,-212.0768296,0.00029858,2]
[341713709,1731120580213,503.99,0.00026906,2]
[341713710,1731120582839,201.52525,0.00022581,2]
[341713721,1731120632671,-500.0,0.00028319,7]
[341713723,1731120632681,-500.0,0.00028319,7]
[341713724,1731120632691,-166.65,0.00028798,2]
[341713725,1731120632701,-160.0,0.00028933,120]
[341713726,1731120632711,-1000.0,0.00028937,2]
[341713727,1731120632720,-500.0,0.00029141,7]
[341713728,1731120632730,-503.99,0.0002917,2]
[341713729,1731120632740,-500.0,0.00029415,7]
[341713730,1731120632750,-441.36,0.0002955,2]
[341713731,1731120632759,-432.81,0.0002955,2]
[341713732,1731120632769,-2000.0,0.000297,2]
[341713733,1731120632779,-150.0,0.00029835,2]
[341713734,1731120632788,-150.0,0.00029841,2]
[341713735,1731120632798,-696.89851746,0.00029858,2]
[341713740,1731120638464,-591.02465294,0.00029858,2]
[341713741,1731120638474,-150.0,0.00029861,2]
[341713742,1731120638484,-150.0,0.00029876,2]
[341713743,1731120638494,-150.0,0.00029877,2]
[341713744,1731120638505,-370.07482074,0.00029879,15]
[341713745,1731120638516,-484.7085986,0.00029879,15]
[341713746,1731120638528,-1145.21658066,0.00029879,15]
[341713747,1731120638538,-150.0,0.00029882,2]
[341713748,1731120638547,-150.0,0.00029883,2]
[341713749,1731120638557,-150.0,0.00029884,2]
[341713750,1731120638565,-427.3243669,0.0002989,10]
[341713751,1731120639069,-864.7822331,0.0002989,10]
[341713752,1731120639080,-150.0,0.00029894,2]
[341713753,1731120639090,-150.0,0.00029895,2]
[341713754,1731120639099,-680.65793559,0.00029899,2]
[341713755,1731120639111,-372.113205,0.00029899,2]
[341713774,1731120643571,-5619.64235941,0.00029899,2]
[341713775,1731120643581,-500.0,0.000299,2]
[341713776,1731120643591,-263.3692,0.000299,2]
[341713777,1731120643600,-1694.7752,0.000299,2]
[341713778,1731120643610,-1165.55856396,0.000299,15]
[341713779,1731120643619,-174.45439595,0.000299,2]
[341713780,1731120643629,-150.0,0.00029906,2]
[341713781,1731120643639,-150.0,0.00029909,2]
[341713782,1731120643648,-150.0,0.00029913,2]
[341713783,1731120643657,-1165.55856394,0.00029915,15]
[341713784,1731120643667,-150.0,0.00029917,2]
[341713785,1731120643676,-150.0,0.0002992,2]
[341713786,1731120643685,-153.36078666,0.0002992,2]
[341713787,1731120643695,-150.0,0.00029921,2]
[341713788,1731120643704,-150.0,0.00029923,2]
[341713789,1731120643714,-150.0,0.00029924,2]
[341713790,1731120643723,-1165.55856394,0.0002993,15]
[341713791,1731120643732,-150.0,0.00029933,2]
[341713792,1731120643741,-150.0,0.00029934,2]
[341713793,1731120643750,-150.0,0.00029935,2]
[341713794,1731120643760,-150.0,0.00029937,2]
[341713795,1731120643769,-150.0,0.00029938,2]